Cogmind - Beta 15 @@@ ROGUE MODE // 2025.05.06 @ 19:39:14 Player: Anting Result: Destroyed by Vortex Trap Performance ------------- Evolutions (0) 0 Regions Visited (3) 600 Robots Destroyed (21) 105 Value Destroyed (546) 546 Prototype IDs (7) 140 Alien Tech Used (0) 0 Bonus (800) 800 TOTAL SCORE: 2191 Bonus ------- Registered with UFD 300 Met Optimus in HQ 500 Cogmind --------- Core Integrity 0/250 Matter 265/300 Energy 100/100 System Corruption 1% Temperature Cool (12) Movement Treading (160) Location -9/Scraptown Parts ------- > --- POWER (1) -------- (None) > --- PROPULSION (2) --- Light Treads > --- UTILITY (2) ------ Large Storage Unit > --- WEAPON (2) ------- (None) > --- INVENTORY (15) --- Light Treads Light Treads Improved Treads Medium Treads Advanced Signal Interpreter Seismic Detector Medium Armor Plating Improved Medium Armor Plating Medium Reactive Plating Master Drone Bay (1/1) Heavy Particle Cannon Heavy Plasma Cannon Rocket Launcher Heavy Rocket Launcher DRS Beacon (Ready) Peak State ------------ > --- POWER ------------ Light Fission Core > --- PROPULSION ------- Light Treads Light Treads > --- UTILITY ---------- Large Storage Unit A0-MCA's Component Scanner > --- WEAPON ----------- Heavy Particle Cannon Heavy Plasma Cannon > --- INVENTORY -------- Light Treads Light Treads Improved Treads Medium Treads Advanced Signal Interpreter Seismic Detector Medium Armor Plating Improved Medium Armor Plating Medium Reactive Plating Heavy Particle Cannon Heavy Plasma Cannon Rocket Launcher Heavy Rocket Launcher Mace DRS Beacon [Rating: 29] Favorites ----------- Power Light Fission Core Engine Ion Engine Power Core Light Fission Core Propulsion Light Treads Treads Light Treads Leg Aluminum Leg Utility Large Storage Unit Device Seismic Detector Storage Large Storage Unit Processor A0-MCA's Component Scanner Weapon Light Assault Rifle Energy Cannon Heavy Plasma Cannon Ballistic Gun Light Assault Rifle Launcher Subdweller Shrapnel Launcher Piercing Weapon Spear Build | -11 -10 -10 -9 ------- Run | Yrd Mat Sub Scr Slots Evolved . | . . . . Power . | . . . . Propulsion . | . . . . Utility . | . . . . Weapon . | . . . . Parts Attached 19 | 7 . 6 6 Power 3 | 1 . 1 1 Engine 2 | 1 . 1 . Core 1 | . . . 1 Reactor . | . . . . Propulsion 4 | 2 . 2 . Treads 2 | . . 2 . Leg 2 | 2 . . . Wheel . | . . . . Hover . | . . . . Flight . | . . . . Utility 5 | 2 . 1 2 Device 2 | 1 . . 1 Storage 2 | 1 . 1 . Processor 1 | . . . 1 Hackware . | . . . . Protection . | . . . . Artifact . | . . . . Weapon 7 | 2 . 2 3 Energy Gun . | . . . . Energy Cannon 2 | . . . 2 Ballistic Gun 3 | 2 . 1 . Ballistic Cannon . | . . . . Launcher 1 | . . 1 . Special Weapon . | . . . . Impact Weapon . | . . . . Slashing Weapon . | . . . . Piercing Weapon 1 | . . . 1 Special Melee Weapon . | . . . . Unidentified Prototypes . | . . . . Parts Lost 10 | . . 5 5 Power 3 | . . 2 1 Propulsion 3 | . . 2 1 Utility 1 | . . . 1 Weapon 3 | . . 1 2 Highest Loss Streak 5 | . . 2 5 To Critical Strikes . | . . . . Average Backups 12 | 3 4 13 13 Power 1 | . 1 2 . Propulsion 2 | 1 2 2 3 Utility 4 | . . 3 5 Weapon 4 | . 1 4 5 Tool/Special . | . . . . Unused Backups 27 | . . . 27 Power 3 | . . . 3 Propulsion 5 | . . . 5 Utility 7 | . . . 7 Weapon 12 | . . . 12 Tool/Special . | . . . . Average Slot Usage (%) 93 | . 100 95 92 Engine 3 | . 14 11 . Core 5 | . . . 7 Treads 20 | . . 3 28 Leg 7 | . 28 22 . Device 14 | . 14 14 14 Storage 14 | . 14 14 14 Energy Cannon 7 | . . . 10 Ballistic Gun 20 | . 28 27 17 Peak Build Rating 29 | 7 7 9 29 Average Rating 13 | 4 7 8 15 On Entrance 5 | . 7 7 9 Naked Turns . | . . . . Heaviest Build 45 | 12 12 30 45 Greatest Support 40 | 20 20 40 40 Greatest Overweight (x) 2 | . . 2 1 Average Overweight (x) . | . . . . Largest Inventory Capacity 15 | 8 8 15 15 Average Capacity 14 | 7 8 13 15 Most Carried 15 | 4 6 15 15 Average Carried 13 | 3 4 13 14 Final Capacity 15 | 8 8 15 15 Final Carried 15 | 4 6 14 15 Class Distribution -------------------- 100% | Mutant Dominant Class ---------------- Mutant | -10/Materials Mutant | -10/Subcaves Mutant | -9/Scraptown Resources | -11 -10 -10 -9 ----------- Run | Yrd Mat Sub Scr Matter Collected 593 | 310 32 149 102 Remotely . | . . . . Salvage Created 773 | 146 137 339 151 Parts 52 | 9 10 24 9 Haulers Intercepted . | . . . . Recyclers Shooed 1 | 1 . . . Parts Field Recycled . | . . . . Retrieved Matter . | . . . . Parts Self-Destructed 8 | . . 8 . Prevented . | . . . . Kills | -11 -10 -10 -9 ------- Run | Yrd Mat Sub Scr Combat Hostiles Destroyed 16 | . 3 10 3 Guns 13 | . 3 10 . Cannons 2 | . . . 2 AOE 1 | . . . 1 Classes Destroyed 9 | 2 4 1 2 Worker 1 | . 1 . . Tunneler 2 | 2 . . . Recycler 1 | 1 . . . Watcher 1 | . 1 . . Swarmer 5 | . 1 4 . Grunt 2 | . 2 . . Subdweller 6 | . . 6 . Guru 1 | . . . 1 Scrapper 2 | . . . 2 Best Kill Streak 4 | 3 3 4 3 Combat Bots Only 4 | . 2 4 3 Max Kills in Single Turn 2 | 1 2 2 1 Gunslinging . | . . . . Exploded 1 | . . . 1 Melee . | . . . . Uniques/NPCs Destroyed . | . . . . Combat | -11 -10 -10 -9 -------- Run | Yrd Mat Sub Scr Hostile Shots Fired 104 | . 12 48 44 Missed 25 | . 4 13 8 Hits 79 | . 8 35 36 Projectile 79 | . 8 35 36 AOE 1 | . . 1 . Critical Strikes 3 | . . 2 1 Damage Taken 1351 | . 118 634 599 Core 261 | . . 75 186 Absorbed by Shields . | . . . . Core Remaining (%) 100 | 100 . . . Volleys Fired 62 | 10 8 37 7 Largest 2 | 2 2 2 2 Hottest 165 | 40 40 40 165 Shots Fired 119 | 20 16 71 12 Gun 104 | 20 16 68 . Cannon 12 | . . . 12 Launcher 3 | . . 3 . Special . | . . . . Kinetic 107 | 20 16 71 . Thermal 12 | . . . 12 Explosive . | . . . . Electromagnetic . | . . . . Robot Hit Streak 8 | 8 5 7 5 Robot Miss Streak 2 | 2 1 2 2 Penetration Max . | . . . . Secondary Targets 1 | . . 1 . Max Gunslinging Chain 1 | . . 1 . Shots Hit Robots 72 | 15 9 43 5 Core Hits 35 | 5 7 20 3 Critical Kills . | . . . . Critical Parts Destroyed . | . . . . Critical Strikes 2 | . . 2 . Destroy 2 | . . 2 . Melee Attacks . | . . . . Impact . | . . . . Slashing . | . . . . Piercing . | . . . . Sneak Attacks . | . . . . Combat Hostiles . | . . . . Follow-up Attacks . | . . . . Damage Inflicted 871 | 145 121 449 156 Guns 715 | 145 121 449 . Cannons 156 | . . . 156 Explosions . | . . . . Melee . | . . . . Ramming . | . . . . Kinetic 715 | 145 121 449 . Thermal 156 | . . . 156 Explosive . | . . . . Electromagnetic . | . . . . Impact . | . . . . Slashing . | . . . . Piercing . | . . . . Highest Corruption 1 | . . . 1 Average Corruption 1 | . . . 1 Corruption Purged . | . . . . Corruption Blocked . | . . . . Overload Shots . | . . . . Overflow Damage . | . . . . Projectiles . | . . . . Explosions . | . . . . Melee . | . . . . Knockbacks . | . . . . Impact . | . . . . Kinetic . | . . . . Secondary . | . . . . Self-Inflicted Damage . | . . . . Shots . | . . . . Rammed . | . . . . Targets Rammed . | . . . . Kicked . | . . . . Crushed . | . . . . Highest Temperature 352 | . 9 . 352 Average Temperature 119 | . 9 . 153 Received Heat Transfer 370 | . 63 66 241 Siege Activations . | . . . . Martial Activations . | . . . . Shielding Activations . | . . . . Robots Disrupted . | . . . . Combat Hostiles . | . . . . Robots Corrupted . | . . . . Combat Hostiles . | . . . . Parts Fried . | . . . . Impact Corruptions . | . . . . Robots Melted . | . . . . Combat Hostiles . | . . . . Parts Melted 3 | . . . 3 Heat Transferred 186 | . . . 186 Parts Sabotaged . | . . . . Parts Stolen . | . . . . Parts Stripped . | . . . . Power Chain Reactions . | . . . . Alert | -11 -10 -10 -9 ------- Run | Yrd Mat Sub Scr Maximum Alert Level . | . . . . Low Security (%) 100 | 100 100 . . Level 1 . | . . . . Level 2 . | . . . . Level 3 . | . . . . Level 4 . | . . . . Level 5 . | . . . . High Security . | . . . . Max Security . | . . . . Peak Influence 50 | 10 50 . . Initial . | . . . . Average 14 | . 20 . . Influence Increases 217 | 15 92 110 . Destroy 0b10 Robot/C 140 | . 60 80 . Destroy 0b10 Robot/NC 25 | 15 10 . . Destroy Leader 22 | . 22 . . Lose Combat Pursuer 30 | . . 30 . Influence Decreases 217 | 15 70 128 4 Entered New Map 15 | . . 11 4 Time Decay 182 | 15 70 97 . Lost Part 20 | . . 20 . Squads Dispatched 1 | . 1 . . Investigation . | . . . . Extermination . | . . . . Reinforcement 1 | . 1 . . Assault . | . . . . Garrison . | . . . . Intercept . | . . . . Searches Triggered . | . . . . Construction Impeded . | . . . . Haulers Reinforced . | . . . . Active Scanning Responses . | . . . . Cargo Convoy Interrupts . | . . . . Stealth | -11 -10 -10 -9 --------- Run | Yrd Mat Sub Scr Distress Signals 2 | . 2 . . Communications Jammed . | . . . . Distress Signals . | . . . . Times Spotted 31 | . 7 12 12 Peak Tracking Total 9 | . 5 6 9 Tactical Retreats 1 | . . 1 . Traps | -11 -10 -10 -9 ------- Run | Yrd Mat Sub Scr Traps Triggered . | . . . . Indirectly . | . . . . Trap Hack Attempts . | . . . . Triggered . | . . . . Disarmed . | . . . . Reprogrammed . | . . . . Reused 1 | . . . 1 Traps Extracted . | . . . . Installed 1 | . . . 1 Triggered . | . . . . Machines | -11 -10 -10 -9 ---------- Run | Yrd Mat Sub Scr Machines Disabled 1 | . . . 1 Max in Single Turn 1 | . . . 1 Machines Repaired . | . . . . Machines Dismantled . | . . . . Machines Sabotaged . | . . . . Overloaded Fab Kills . | . . . . Hacking | -11 -10 -10 -9 --------- Run | Yrd Mat Sub Scr Machines Accessed 2 | . . . 2 Terminals . | . . . . Fabricators . | . . . . Repair Stations . | . . . . Recycling Units . | . . . . Scanalyzers . | . . . . Garrison Access . | . . . . Total Hacks 17 | . . . 17 Successful 17 | . . . 17 Failed . | . . . . Catastrophic . | . . . . Database Lockouts . | . . . . Manual . | . . . . Terminals . | . . . . Fabricators . | . . . . Repair Stations . | . . . . Recycling Units . | . . . . Scanalyzers . | . . . . Garrison Access . | . . . . Terminal Hacks 17 | . . . 17 Record 16 | . . . 16 Proto ID Catalog 1 | . . . 1 Fabricator Hacks . | . . . . Repair Station Hacks . | . . . . Recycling Unit Hacks . | . . . . Scanalyzer . | . . . . Garrison Access Hacks . | . . . . Unauthorized Hacks . | . . . . Terminals . | . . . . Fabricators . | . . . . Repair Stations . | . . . . Recycling Units . | . . . . Scanalyzers . | . . . . Garrison Access . | . . . . Data Cores Recovered . | . . . . Used . | . . . . Hacking Detections . | . . . . Full Trace Events . | . . . . Feedback Events . | . . . . Feedback Blocked . | . . . . Robot Schematics Acquired . | . . . . Robots Built . | . . . . Authchips . | . . . . Time . | . . . . Total Robot Build Rating . | . . . . Part Schematics Acquired . | . . . . Parts Built . | . . . . Authchips . | . . . . Time . | . . . . Total Part Build Rating . | . . . . Parts Repaired . | . . . . Time . | . . . . Parts Recycled . | . . . . Recycled Matter . | . . . . Retrieved Matter . | . . . . Retrieved Components . | . . . . Parts Scanalyzed . | . . . . Part Schematics Acquired . | . . . . Parts Damaged . | . . . . Bothacking | -11 -10 -10 -9 ------------ Run | Yrd Mat Sub Scr Used RIF Installer . | . . . . Robots Hacked . | . . . . Non-combat . | . . . . Combat . | . . . . Robot Hacks Applied . | . . . . Relay Couplers Released . | . . . . Fabnet Peak Effective % . | . . . . Robots Rewired . | . . . . Allies Hacked . | . . . . Hacks Repelled . | . . . . Allies | -11 -10 -10 -9 -------- Run | Yrd Mat Sub Scr Total Allies . | . . . . Largest Group . | . . . . Highest-Rated Group . | . . . . Highest-Rated Ally . | . . . . Total Orders . | . . . . Ally Attacks . | . . . . Total Damage . | . . . . Kills . | . . . . Allies Corrupted . | . . . . Allies Melted . | . . . . Intel | -11 -10 -10 -9 ------- Run | Yrd Mat Sub Scr Active Infowar (turns) 3014 | 6 198 968 1842 Seismic 3014 | 6 198 968 1842 Robot Analysis Total . | . . . . Derelict Logs Recovered 6 | . . 1 5 Drone Launches . | . . . . Drone Recoveries . | . . . . Exploration | -11 -10 -10 -9 ------------- Run | Yrd Mat Sub Scr Turns Passed 3941 | 87 198 968 2688 Spaces Moved 1951 | 42 133 445 1331 Core 8 | 8 . . . Treads 1393 | . . 62 1331 Legs 550 | 34 133 383 . Wheels . | . . . . Hover . | . . . . Flight . | . . . . Fastest Speed 50 | 50 120 120 160 Average Speed 171 | 106 120 177 177 Slowest Speed 260 | 120 120 260 240 Overloaded Moves . | . . . . Propulsion Burnouts . | . . . . Robots Hopped . | . . . . Potential Cave-ins . | . . . . Cave-ins Triggered . | . . . . Exploration Rate (%) 41 | 3 40 35 88 Regions Visited 3 Branch Regions 2 Pre-discovered Areas 3 | . . . 3 Known Exits Taken . | . . . . Unknown Exits Taken 3 | 1 1 1 . Scrap Searched 9 | . . 1 8 Spaces Dug 47 | . . 46 1 Terrain Destroyed 52 | . . 46 6 Melee . | . . . . Projectile 6 | . . . 6 AOE 46 | . . 46 . Terrain Rammed . | . . . . Walls Destroyed . | . . . . Machines Disabled . | . . . . Actions | -11 -10 -10 -9 --------- Run | Yrd Mat Sub Scr Total 2435 | 62 157 559 1657 Wait 344 | . 15 59 270 Move 1948 | 41 132 444 1331 Hop . | . . . . Pick Up 36 | 4 2 12 18 Fast Attach 14 | 7 . 1 6 Attach 3 | . . 3 . Detach . | . . . . Swap 4 | . . 2 2 Drop 23 | . . 1 22 Fire 62 | 10 8 37 7 Melee . | . . . . Ram . | . . . . Kick . | . . . . Crush . | . . . . Escape Stasis . | . . . . Rewire . | . . . . Trap 1 | . . . 1 Miscellaneous . | . . . . Route ------- -11/Scrapyard -10/Materials (discovered 2 exits: [*Min] / [*Sub]) -10/Subcaves -9/Scraptown History --------- Turn | Location | Event 5 | -11/Scrapyard | Discovered new exit (range 14) 88 | -11/Scrapyard | Entered Materials 89 | -10/Materials | Met a group of wandering Federalists 178 | -10/Materials | Discovered new exit (range 10) 260 | -10/Materials | Discovered new exit (range 3) 286 | -10/Materials | Entered Subcaves 287 | -10/Subcaves | Continued accompanying wandering Federalists (3) 287 | -10/Subcaves | Approached by a straggling Scientist 312 | -10/Subcaves | Build established: Mutant 440 | -10/Subcaves | Ambushed by angry Subdweller bent on revenge 482 | -10/Subcaves | Lost 5 allies 490 | -10/Subcaves | Learned location of 1 exit from Materials 586 | -10/Subcaves | Shifting Twisted Machinery released Sub. Laser 597 | -10/Subcaves | Shifting Twisted Machinery released Sub. Machine Gun 1233 | -10/Subcaves | Scientist uncovered a shortcut to Scraptown 1254 | -10/Subcaves | Entered Scraptown 1570 | -9/Scraptown | Scanned Subdweller tech in exchange for log data 1574 | -9/Scraptown | Learned location of Zion (-7) 1575 | -9/Scraptown | Learned Factory stockpile data 1577 | -9/Scraptown | Learned location of Warlord (-4) 1578 | -9/Scraptown | Learned location of 1 exit from Proximity Caves 1580 | -9/Scraptown | Learned Factory terminal intel 2037 | -9/Scraptown | Visited Symbiants 2084 | -9/Scraptown | Visited Bundlers 2176 | -9/Scraptown | Visited CPS Storage 2220 | -9/Scraptown | Visited Cyclists 2284 | -9/Scraptown | Visited Shadow of the Wyrm 2318 | -9/Scraptown | Visited Awakened 2328 | -9/Scraptown | Visited The Evicted 2432 | -9/Scraptown | Visited UFD Registry 2440 | -9/Scraptown | Registered with UFD as "Cogback" 2480 | -9/Scraptown | Visited Junk Repository 2534 | -9/Scraptown | Visited Science Testing Area 2556 | -9/Scraptown | Visited DA-N13 Charitable Foundation 2571 | -9/Scraptown | Found DCF Scrap (26 items) 2816 | -9/Scraptown | Visited Chapter 10 2843 | -9/Scraptown | Visited Derelict Rescue Squad 2853 | -9/Scraptown | Found DRS Beacon 2905 | -9/Scraptown | Visited Junk Repository 2957 | -9/Scraptown | Visited Supply Room 3012 | -9/Scraptown | Visited A0-MCA Data Center 3053 | -9/Scraptown | Visited Scrapoid Research Area 3121 | -9/Scraptown | Given a C+ rating by A0-MCA 3193 | -9/Scraptown | Visited Science Guys 3314 | -9/Scraptown | Found A0-MCA's Component Scanner 3454 | -9/Scraptown | Met Optimus 3454 | -9/Scraptown | Accepted into 0bPrime 3854 | -9/Scraptown | Civil war broke out across Scraptown 3892 | -9/Scraptown | Found Master Drone Bay 3926 | -9/Scraptown | Core integrity fell below 50% 3928 | -9/Scraptown | Lost 7 allies 3939 | -9/Scraptown | Core integrity fell below 20% 3942 | -9/Scraptown | Destroyed by Vortex Trap Last Messages --------------- 03892_ Acquired Master Drone Bay. 03920_ Ovr. Titanium Leg melted. 03920_ Ovr. Pulse Rifle melted. 03920_ Lgt. Deuterium Engine melted. 03920_ HB-HFS(j) destroyed. 03923_ AI-U8W(j) destroyed. 03925_ Critical hit (Burn: +50). 03927_ UH-G34(g) misfires. 03929_ Bolt penetrates Wall. 03937_ 2D-G24(g): "Make peace, not pieces!" 03939_ Installed Vortex Trap. 03942_ FX-SRV(p) triggered Vortex Trap. 03942_ A wave of accelerated entropy washes over the area. 03942_ FX-SRV(p) destroyed. 03942_ Supplies damaged. 03942_ Imp. Cooling System destroyed. 03942_ Hvy. Plasma Cannon destroyed. 03942_ Lgt. Fission Core destroyed. 03942_ Hvy. Particle Cannon destroyed. 03942_ Lgt. Treads destroyed. Map ----- +----------------------------------------------------+ | ?????????????????????????????????????????????????? | | ?????????????????????????????????????????????????? | | ?????????????????????????????????????????????????? | | ?????????????????????????????????????????????????? | | ?????????????????????????????????????????????????? | | ?????????????????????????????????????????????????? | | ?????????????????????????????????????????????????? | | ?????????????????????????????????????????????????? | | ?????????????????????#???????????????????????????? | | ????????????????????? ???????????????????????????? | | ????????????????????# ???????????????????????????? | | ????????????????????#"###????????????????????????? | | ???????????????????## "#????????????????????????? | | ???????????????????# #????????????????????????? | | ??????????????????? ????????????????????????? | | ??????????????????? ?????????????????????????? | | ????????????????????=[* ?????????????????????????? | | ????????????????????"%=#?????????????????????????? | | ????????????????????#!!#############?????????????? | | ?#######????????????# #"""""""""""#?????????????? | | """""""""#??????????# #""" X """""#?????????????? | | """""""""#??????????# #"""" """#?????????????? | | """""""""#??????????# #"" " "#?????????????? | | """""""""############ #"" " """#?????????????? | | """ """##""["""!!##hg= """"#?????????????? | | """ """##"|[""[!!## ;%@[ ""#?????????????? | | """ "!"##/"[[[[""## ; "" ""#?????????????? | | """" """##" ""## #&" "" ""#?????????????? | | """ """## / ## #" #?????????????? | | " ## ## # "#?????????????? | | ### ########### ##### ## ##########?????????????? | | ### ########### ##### ## #########??????????????? | | """ """"""" """ """"" "" "## !#??????????????? | | / "## /=#??????????????? | | ! "## ####??????????????? | | % "## *#??????????????? | | ! "## [ !#??????????????? | | [!#??????????????? | | """""""""""""""""""" "## ####??????????????? | | """"""""""""""""""""" "## !]#??????????????? | | # ################"" "## !!#??????????????? | | ##????????#"" "##############????????? | | X"#????????#"" "## """"""""#????????? | | " "" ##????????#"" "## " " " "#????????? | | "" X"#??????###"" "## "#????????? | | " ######### #"" ## &"#????????? | | "" ] &"#????????? | | "" ## ""#????????? | | " ######### #"" "## " " " "#????????? | | "" ""#??????###"" "## """"""""#????????? | +----------------------------------------------------+ Best States ------------- Heat Dissipation 52 Energy Generation 18 Energy Capacity 250 Matter Stores 300 Matter Capacity 300 Sight Range 16 Terrain Scan Density 10 Evasion (%) 55 Recoil Reduction 2 Item Schematics ----------------- None Robot Schematics ------------------ None Fabricated ------------ Nothing Repaired ---------- Nothing Alien Tech Used ----------------- None Achievements -------------- None Challenges ------------ None Game ------ Seed RecyclingCentriumMaul Manual? 0 Play Time 00:18:11 Cumulative 240.3 hours Start 2025.05.06 @ 19:22:01 End 2025.05.06 @ 19:39:14 Sessions 1 Manual Loads 0 Difficulty Rogue Special Mode None Game No. 156 Rogue 156 Adventurer 0 Explorer 0 Win Type - Total 13 Types 6/0/5/1/0/0/0/1/0/0 Lore% 74 Gallery% 69 Achievement% 73 Wizard Run 0 Options --------- Layout 0 ASCII 0 Keyboard 0 Movement Mouse Keybinds 0 Fullscreen 2 Font 24/Smallcaps Map View 76x50 Zoom Use 0% Tactical HUD 1 Map Filters NONE Filters NONE Steam 1 RUN: ae6f3b13-a513-48ea-ac67-7df83f05f7d4